Cogmind - Beta 16 @@@ ROGUE MODE // 2025.12.05 @ 10:56:15 Player: most_lamentable Result: Destroyed by DT-6TS(j) with Overtuned Pulse Rifle Performance ------------- Evolutions (0) 0 Regions Visited (3) 600 Robots Destroyed (5) 25 Value Destroyed (176) 176 Prototype IDs (6) 120 Alien Tech Used (0) 0 Bonus (800) 800 TOTAL SCORE: 1721 Bonus ------- Registered with UFD 300 Met Optimus in HQ 500 Cogmind --------- Core Integrity 0/250 Matter 145/300 Energy 100/100 System Corruption 1% Temperature Warm (121) Movement Core (200) Ox3 Location -8/Scraptown Parts ------- > --- POWER (1) -------- (None) > --- PROPULSION (2) --- (None) > --- UTILITY (2) ------ Medium Storage Unit Visual Processing Unit > --- WEAPON (2) ------- Light Assault Rifle > --- INVENTORY (10) --- Makeshift Microdissipator Network Huge Storage Unit Active Sensor Suite Advanced Targeting Computer Expert System Improved Light Armor Plating A0-MCA's Component Scanner Peak State ------------ > --- POWER ------------ Nuclear Core > --- PROPULSION ------- Aluminum Leg Overtuned Titanium Leg > --- UTILITY ---------- Medium Storage Unit Visual Processing Unit > --- WEAPON ----------- High-powered Shotgun Shock Bomb Launcher > --- INVENTORY -------- Makeshift Microdissipator Network Huge Storage Unit Active Sensor Suite Advanced Targeting Computer Expert System Improved Light Armor Plating A0-MCA's Component Scanner Light Assault Rifle [Rating: 21] Favorites ----------- Power Light Ion Engine Engine Light Ion Engine Power Core Nuclear Core Propulsion Aluminum Leg Leg Aluminum Leg Utility Visual Processing Unit Storage Small Storage Unit Processor Visual Processing Unit Weapon Light Assault Rifle Energy Gun EM Pulse Gun Ballistic Gun Light Assault Rifle Launcher Shock Bomb Launcher Build | -11 -10 -10 -8 ------- Run | Yrd Mat Sub Scr Slots Evolved . | . . . . Power . | . . . . Propulsion . | . . . . Utility . | . . . . Weapon . | . . . . Parts Attached 13 | 6 1 . 6 Power 2 | 1 . . 1 Engine 1 | 1 . . . Core 1 | . . . 1 Reactor . | . . . . Propulsion 3 | 2 . . 1 Treads . | . . . . Leg 3 | 2 . . 1 Wheel . | . . . . Hover . | . . . . Flight . | . . . . Utility 4 | 1 1 . 2 Device . | . . . . Storage 3 | 1 . . 2 Processor 1 | . 1 . . Hackware . | . . . . Protection . | . . . . Artifact . | . . . . Weapon 4 | 2 . . 2 Energy Gun 1 | 1 . . . Energy Cannon . | . . . . Ballistic Gun 2 | 1 . . 1 Ballistic Cannon . | . . . . Launcher 1 | . . . 1 Special Weapon . | . . . . Impact Weapon . | . . . . Slashing Weapon . | . . . . Piercing Weapon . | . . . . Special Melee Weapon . | . . . . Unidentified Prototypes . | . . . . Parts Lost 5 | . . . 5 Power 1 | . . . 1 Propulsion 2 | . . . 2 Utility . | . . . . Weapon 2 | . . . 2 Highest Loss Streak 5 | . . . 5 To Critical Strikes . | . . . . Average Backups 7 | 4 6 8 7 Power . | . 1 1 . Propulsion 2 | 2 4 4 2 Utility 2 | . . 2 3 Weapon 1 | . 1 1 1 Tool/Special . | . . . . Unused Backups 15 | . . . 15 Power 2 | . . . 2 Propulsion 4 | . . . 4 Utility 6 | . . . 6 Weapon 1 | . . . 1 Tool/Special 2 | . . . 2 Average Slot Usage (%) 99 | . 95 100 99 Engine 10 | . 14 14 9 Core 3 | . . . 4 Leg 27 | . 28 28 27 Storage 14 | . 14 14 14 Processor 13 | . 9 14 14 Energy Gun 13 | . 14 14 13 Ballistic Gun 14 | . 14 14 14 Peak Build Rating 21 | 6 8 8 21 Average Rating 10 | 4 7 8 11 On Entrance 5 | . 6 8 8 Avg Prop Armor Cover (%) . | . . . . Naked Turns . | . . . . Heaviest Build 26 | 11 11 11 26 Greatest Support 29 | 20 20 20 29 Greatest Overweight (x) 1 | 1 . . . Average Overweight (x) . | . . . . Largest Inventory Capacity 25 | 8 8 8 25 Average Capacity 8 | 7 8 8 9 Most Carried 10 | 6 8 8 10 Average Carried 8 | 4 6 8 9 Final Capacity 10 | 8 8 8 10 Final Carried 9 | 6 8 8 9 Class Distribution -------------------- 100% | Mutant Dominant Class ---------------- Mutant | -10/Materials Mutant | -10/Subcaves Mutant | -8/Scraptown Resources | -11 -10 -10 -8 ----------- Run | Yrd Mat Sub Scr Matter Collected 306 | 236 27 13 30 Remotely . | . . . . Salvage Created 294 | . 60 . 234 Parts 11 | . 1 . 10 Haulers Intercepted 1 | . 1 . . Recyclers Shooed . | . . . . Parts Field Recycled . | . . . . Retrieved Matter . | . . . . Parts Self-Destructed . | . . . . Prevented . | . . . . Parts Restored . | . . . . Kills | -11 -10 -10 -8 ------- Run | Yrd Mat Sub Scr Combat Hostiles Destroyed 4 | . . . 4 Guns 2 | . . . 2 AOE 2 | . . . 2 Classes Destroyed 5 | . 1 . 4 Hauler 1 | . 1 . . Explorer 1 | . . . 1 Ranger 1 | . . . 1 Guru 1 | . . . 1 Scrapper 1 | . . . 1 Best Kill Streak 3 | . 1 . 3 Combat Bots Only 3 | . . . 3 Max Kills in Single Turn 2 | . 1 . 2 Gunslinging . | . . . . Exploded 1 | . . . 1 Melee . | . . . . Uniques/NPCs Destroyed . | . . . . Combat | -11 -10 -10 -8 -------- Run | Yrd Mat Sub Scr Hostile Shots Fired 55 | . . . 55 Missed 20 | . . . 20 Hits 35 | . . . 35 Melee 3 | . . . 3 Projectile 32 | . . . 32 Critical Strikes 3 | . . . 3 Damage Taken 848 | . . . 848 Core 267 | . . . 267 Absorbed by Shields . | . . . . Core Remaining (%) 100 | 100 . . . Volleys Fired 26 | . 6 . 20 Largest 2 | . 2 . 2 Hottest 61 | . 60 . 61 Shots Fired 49 | . 12 . 37 Gun 43 | . 12 . 31 Cannon . | . . . . Launcher 6 | . . . 6 Special . | . . . . Kinetic 37 | . 6 . 31 Thermal . | . . . . Explosive . | . . . . Electromagnetic 12 | . 6 . 6 Robot Hit Streak 6 | . 2 . 6 Robot Miss Streak 3 | . 2 . 3 Penetration Max . | . . . . Secondary Targets 1 | . . . 1 Max Gunslinging Chain 1 | . . . 1 Shots Hit Robots 20 | . 6 . 14 Core Hits 10 | . 2 . 8 Critical Kills . | . . . . Critical Parts Destroyed . | . . . . Critical Strikes . | . . . . Melee Attacks . | . . . . Impact . | . . . . Slashing . | . . . . Piercing . | . . . . Sneak Attacks . | . . . . Combat Hostiles . | . . . . Follow-up Attacks . | . . . . Damage Inflicted 452 | . 66 . 386 Guns 233 | . 66 . 167 Cannons . | . . . . Explosions 219 | . . . 219 Melee . | . . . . Ramming . | . . . . Kinetic 190 | . 23 . 167 Thermal 56 | . . . 56 Explosive . | . . . . Electromagnetic 206 | . 43 . 163 Impact . | . . . . Slashing . | . . . . Piercing . | . . . . Highest Corruption 1 | . . . 1 Average Corruption 1 | . . . 1 Corruption Purged . | . . . . Corruption Blocked . | . . . . Overload Shots . | . . . . Overflow Damage . | . . . . Projectiles . | . . . . Explosions . | . . . . Melee . | . . . . Knockbacks . | . . . . Impact . | . . . . Kinetic . | . . . . Secondary . | . . . . Self-Inflicted Damage 130 | . . . 130 Shots 6 | . . . 6 Rammed . | . . . . Targets Rammed . | . . . . Kicked . | . . . . Crushed . | . . . . Highest Temperature 97 | . 40 . 97 Average Temperature 20 | . 20 . 20 Received Heat Transfer 411 | . . . 411 Siege Activations . | . . . . Martial Activations . | . . . . Shielding Activations . | . . . . Robots Disrupted . | . . . . Combat Hostiles . | . . . . Robots Corrupted . | . . . . Combat Hostiles . | . . . . Parts Fried 2 | . . . 2 Impact Corruptions . | . . . . Robots Melted . | . . . . Combat Hostiles . | . . . . Parts Melted . | . . . . Heat Transferred 50 | . . . 50 Parts Sabotaged . | . . . . Parts Stolen . | . . . . Parts Stripped . | . . . . Power Chain Reactions 1 | . . . 1 Alert | -11 -10 -10 -8 ------- Run | Yrd Mat Sub Scr Maximum Alert Level . | . . . . Low Security (%) 100 | 100 100 . . Level 1 . | . . . . Level 2 . | . . . . Level 3 . | . . . . Level 4 . | . . . . Level 5 . | . . . . High Security . | . . . . Max Security . | . . . . Peak Influence 7 | . 7 . . Initial . | . . . . Average . | . . . . Influence Increases 7 | . 7 . . Destroy 0b10 Robot/NC 5 | . 5 . . Destroy Leader 2 | . 2 . . Influence Decreases 7 | . 7 . . Time Decay 7 | . 7 . . Squads Dispatched 1 | . 1 . . Investigation . | . . . . Extermination . | . . . . Reinforcement 1 | . 1 . . Assault . | . . . . Garrison . | . . . . Intercept . | . . . . Searches Triggered . | . . . . Construction Impeded . | . . . . Haulers Reinforced . | . . . . Active Scanning Responses . | . . . . Cargo Convoy Interrupts . | . . . . Stealth | -11 -10 -10 -8 --------- Run | Yrd Mat Sub Scr Distress Signals . | . . . . Communications Jammed . | . . . . Distress Signals . | . . . . Times Spotted 13 | . 2 . 11 Peak Tracking Total 5 | . 2 . 5 Tactical Retreats . | . . . . Traps | -11 -10 -10 -8 ------- Run | Yrd Mat Sub Scr Traps Triggered . | . . . . Indirectly . | . . . . Trap Hack Attempts . | . . . . Triggered . | . . . . Disarmed . | . . . . Reprogrammed . | . . . . Reused . | . . . . Traps Extracted . | . . . . Installed . | . . . . Triggered . | . . . . Machines | -11 -10 -10 -8 ---------- Run | Yrd Mat Sub Scr Machines Disabled 2 | . . . 2 Max in Single Turn 1 | . . . 1 Machines Repaired . | . . . . Machines Dismantled . | . . . . Machines Sabotaged . | . . . . Overloaded Fab Kills . | . . . . Hacking | -11 -10 -10 -8 --------- Run | Yrd Mat Sub Scr Machines Accessed 7 | . . . 7 Terminals . | . . . . Fabricators . | . . . . Repair Stations . | . . . . Recycling Units . | . . . . Scanalyzers . | . . . . Garrison Access . | . . . . Total Hacks 62 | . . . 62 Successful 62 | . . . 62 Failed . | . . . . Catastrophic . | . . . . Database Lockouts . | . . . . Manual 1 | . 1 . . Terminals . | . . . . Fabricators . | . . . . Repair Stations . | . . . . Recycling Units . | . . . . Scanalyzers . | . . . . Garrison Access . | . . . . Terminal Hacks 62 | . . . 62 Record 58 | . . . 58 Robot Analysis 4 | . . . 4 Fabricator Hacks . | . . . . Repair Station Hacks . | . . . . Recycling Unit Hacks . | . . . . Scanalyzer . | . . . . Garrison Access Hacks . | . . . . Unauthorized Hacks . | . . . . Terminals . | . . . . Fabricators . | . . . . Repair Stations . | . . . . Recycling Units . | . . . . Scanalyzers . | . . . . Garrison Access . | . . . . Data Cores Recovered . | . . . . Used . | . . . . Hacking Detections . | . . . . Full Trace Events . | . . . . Feedback Events . | . . . . Feedback Blocked . | . . . . Robot Schematics Acquired . | . . . . Robots Built . | . . . . Authchips . | . . . . Time . | . . . . Total Robot Build Rating . | . . . . Part Schematics Acquired . | . . . . Parts Built . | . . . . Authchips . | . . . . Time . | . . . . Total Part Build Rating . | . . . . Part Studies Acquired . | . . . . Parts Repaired . | . . . . Time . | . . . . Parts Recycled . | . . . . Recycled Matter . | . . . . Retrieved Matter . | . . . . Retrieved Components . | . . . . Parts Scanalyzed . | . . . . Part Schematics Acquired . | . . . . Parts Damaged . | . . . . Bothacking | -11 -10 -10 -8 ------------ Run | Yrd Mat Sub Scr Used RIF Installer . | . . . . Robots Hacked . | . . . . Non-combat . | . . . . Combat . | . . . . Robot Hacks Applied . | . . . . Relay Couplers Released . | . . . . Fabnet Peak Effective % . | . . . . Robots Rewired . | . . . . Allies Hacked . | . . . . Hacks Repelled . | . . . . Allies | -11 -10 -10 -8 -------- Run | Yrd Mat Sub Scr Total Allies . | . . . . Largest Group . | . . . . Highest-Rated Group . | . . . . Highest-Rated Ally . | . . . . Total Orders . | . . . . Ally Attacks . | . . . . Total Damage . | . . . . Kills . | . . . . Allies Corrupted . | . . . . Allies Melted . | . . . . Intel | -11 -10 -10 -8 ------- Run | Yrd Mat Sub Scr Active Infowar (turns) 2626 | . 90 274 2262 Optics 2626 | . 90 274 2262 Robot Analysis Total 4 | . . . 4 Derelict Logs Recovered 2 | . . 2 . Drone Launches . | . . . . Drone Recoveries . | . . . . Exploration | -11 -10 -10 -8 ------------- Run | Yrd Mat Sub Scr Turns Passed 2731 | 70 125 274 2262 Spaces Moved 2146 | 46 75 217 1808 Core 7 | 7 . . . Treads . | . . . . Legs 2139 | 39 75 217 1808 Wheels . | . . . . Hover . | . . . . Flight . | . . . . Fastest Speed 50 | 50 120 120 100 Average Speed 119 | 113 120 120 119 Slowest Speed 190 | 190 120 120 120 Overloaded Moves . | . . . . Propulsion Burnouts . | . . . . Robots Hopped . | . . . . Potential Cave-ins . | . . . . Cave-ins Triggered . | . . . . Exploration Rate (%) 32 | 4 21 14 91 Regions Visited 3 Branch Regions 2 Pre-discovered Areas 5 | . . . 5 Known Exits Taken . | . . . . Unknown Exits Taken 3 | 1 1 1 . Scrap Searched 2 | . . . 2 Spaces Dug . | . . . . Terrain Destroyed 8 | . . . 8 Melee . | . . . . Projectile . | . . . . AOE 8 | . . . 8 Terrain Rammed . | . . . . Walls Destroyed . | . . . . Machines Disabled . | . . . . Actions | -11 -10 -10 -8 --------- Run | Yrd Mat Sub Scr Total 2271 | 63 99 231 1878 Wait 43 | . 15 16 12 Move 2142 | 45 74 215 1808 Hop . | . . . . Pick Up 30 | 12 3 . 15 Fast Attach . | . . . . Attach 9 | 6 1 . 2 Detach . | . . . . Swap 7 | . . . 7 Drop 14 | . . . 14 Fire 26 | . 6 . 20 Melee . | . . . . Ram . | . . . . Kick . | . . . . Crush . | . . . . Escape Stasis . | . . . . Rewire . | . . . . Trap . | . . . . Miscellaneous . | . . . . Route ------- -11/Scrapyard -10/Materials -10/Subcaves (discovered 2 exits: [*Mat] / *Scr) -8/Scraptown (discovered 2 exits: *Fac x2) History --------- Turn | Location | Event 27 | -11/Scrapyard | Discovered new exit (range 15) 71 | -11/Scrapyard | Entered Materials 72 | -10/Materials | Met a group of wandering Federalists 189 | -10/Materials | Discovered new exit (range 6) 196 | -10/Materials | Entered Subcaves 197 | -10/Subcaves | Continued accompanying wandering Federalists (6) 206 | -10/Subcaves | Learned Materials terminal intel 241 | -10/Subcaves | Learned Materials emergency access door positions 317 | -10/Subcaves | Build established: Mutant 340 | -10/Subcaves | Discovered new exit (range 7) 460 | -10/Subcaves | Wandering Federalist uncovered a shortcut to Scraptown 470 | -10/Subcaves | Entered Scraptown 601 | -8/Scraptown | Visited Junk Repository 636 | -8/Scraptown | Visited Red Mages 727 | -8/Scraptown | Visited TADAMA 754 | -8/Scraptown | Visited Shadow of the Wyrm 785 | -8/Scraptown | Visited Assassins FH 822 | -8/Scraptown | Heard Great Nut preacher, LISTEN AND RECITE! 1183 | -8/Scraptown | Discovered new exit (range 5) 1290 | -8/Scraptown | Visited Symbiants 1315 | -8/Scraptown | Visited Fellowship of the Rings 1350 | -8/Scraptown | Visited UFD Registry 1350 | -8/Scraptown | Registered with UFD as "Plasmaskull" 1390 | -8/Scraptown | Visited Cartography Club 1470 | -8/Scraptown | Visited Infowarlord's Domain 1492 | -8/Scraptown | Found Active Sensor Suite 1694 | -8/Scraptown | Learned location of Storage (-8) 1694 | -8/Scraptown | Learned location of Recycling (-8) 1694 | -8/Scraptown | Learned location of Lower Caves (-6) 1694 | -8/Scraptown | Learned location of Proximity Caves (-6) 1694 | -8/Scraptown | Learned 12 Materials zone layouts 1694 | -8/Scraptown | Learned 4 Access zone layouts 1694 | -8/Scraptown | Learned 4 Recycling zone layouts 1694 | -8/Scraptown | Learned 16 Lower Caves zone layouts 1694 | -8/Scraptown | Learned 20 Upper Caves zone layouts 1694 | -8/Scraptown | Learned 8 Proximity Caves zone layouts 1694 | -8/Scraptown | Learned Research emergency access door positions 1694 | -8/Scraptown | Learned location of 3 exits from Lower Caves 1694 | -8/Scraptown | Learned location of 1 exit from Upper Caves 1694 | -8/Scraptown | Learned location of 1 exit from Proximity Caves 1694 | -8/Scraptown | Identified exit to Factory 1807 | -8/Scraptown | Visited A0-MCA Data Center 1814 | -8/Scraptown | Given a B+ rating by A0-MCA 1819 | -8/Scraptown | Found A0-MCA's Component Scanner 1985 | -8/Scraptown | Visited Scrapoid Pod Storage 1991 | -8/Scraptown | Found Scrapoid Pod 2011 | -8/Scraptown | Visited DA-N13 Charitable Foundation 2017 | -8/Scraptown | Found DCF Scrap (29 items) 2104 | -8/Scraptown | Visited Analyses Database 2473 | -8/Scraptown | Met Optimus 2473 | -8/Scraptown | Accepted into 0bPrime 2583 | -8/Scraptown | Civil war broke out across Scraptown 2635 | -8/Scraptown | Found Prototype Processor 2690 | -8/Scraptown | Lost 6 allies 2712 | -8/Scraptown | Core integrity fell below 50% 2732 | -8/Scraptown | Core integrity fell below 20% 2732 | -8/Scraptown | Destroyed by DT-6TS(j) with Overtuned Pulse Rifle Last Messages --------------- 02671_ FV-2M0(h) destroyed. 02678_ 8U-3RP(h) misfires. 02678_ Bolt penetrates Wall. 02680_ 4O-ZTJ(j) heat short circuits Ovr. Titanium Leg. 02682_ ND-OPQ(p) destroyed. 02682_ Penetrated by Bolt. 02685_ Airjet fried. 02685_ Mak. Targeting Computer fried. 02685_ 8U-3RP(h) destroyed. 02685_ 4O-ZTJ(j) destroyed. 02700_ Aluminum Leg destroyed. 02700_ Chain reaction triggered in Nuclear Core. 02701_ Shock Bomb Launcher destroyed. 02707_ VU-065(x) destroyed. 02707_ Switching to secondary target: KE-1EK(j). 02714_ KE-1EK(j) heat damages Ovr. Pulse Rifle. 02722_ Machine disabled. 02727_ Ovr. Titanium Leg destroyed. 02727_ Critical hit (Burn: +50). 02730_ Hpw. Shotgun destroyed. Map ----- +----------------------------------------------------+ | | | | | | | ?????????????????????????????????????????????????? | | ?????????????????????????????????????????????????? | | ?????????????????????????????????????????????????? | | ?????????????????????????????????????????????????? | | ?????????????????????????????????????????????????? | | ?????????????????????????????????????????????????? | | ?????????????????????????????????????????????????? | | ?????????????????????????????????????????????????? | | ?????????????????????????????????????????????????? | | ?????????????????????????????????????????????????? | | ?????????????????????????????????????????????????? | | ?????????????????????????#####???????????????????? | | ?????????????????????????#"""#???????????????????? | | #############???####?????#" "#???????????????????? | | ""##"" ##"""#??## ##????# < #???????????????????? | | "!##"" ##!!"#### =###### ##??????????????????? | | = = !=%* #??????????????????? | | =!%*! #??????????????????? | | ################[=%!###########??????????????????? | | ???????????????##%=##????????????????????????????? | | ????????????????#!=#?????????????????????????????? | | ??????###########[!###########???????????????????? | | ??????#"""""""""# #""" @ #???????????????????? | | ##????#"""""""""# """j ;#??????????????????? | | #????#"""""""""# # j "##" ##??????????????????? | | #????#"""""""""# #"g ##" #???????????????????? | | #????#"""[ """# # " """ #???????????????????? | | #????#""" """ #j ## #???????????????????? | | #????#""" " " %; "##" "#???????????????????? | | #????#"""" [ ; """ "#???????????????????? | | #????#""" """ #???????????????????? | | #????#" # """"""""#???????????????????? | | ##????##### ##### ## ########???????????????????? | | ########### ##### ## ##?????????????????????????? | | " """"""" """"" "" "########??????????????????? | | =%=[[ %[ "##"""" #??????????????????? | | !%! & "## "#??????????????????? | | ! "## "#??????????????????? | | "## ! "#??????????????????? | | "#??????????????????? | | """"""""""""""""" "## "#??????????????????? | | """""""""""""""""* "## "#??????????????????? | | ###############"" "##"""""#??????????????????? | | ##????????#""%= "#########?????????????????? | | X"#????????#" * "## = #?????????????????? | | " ##????????#"" "## % #?????????????????? | | "" X"#??????###""= "## [!= #?????????????????? | +----------------------------------------------------+ Best States ------------- Heat Dissipation 25 Energy Generation 14 Energy Capacity 240 Matter Stores 300 Matter Capacity 300 Sight Range 18 Terrain Scan Density 10 Evasion (%) 55 Item Schematics ----------------- None Robot Schematics ------------------ None Fabricated ------------ Nothing Repaired ---------- Nothing Studied --------- None Alien Tech Used ----------------- None Achievements -------------- Civilization 2243 Link The Feds Strength In Numbers Challenges ------------ None Game ------ Seed ChromaticTransportStripper Manual? 0 Play Time 00:49:03 Cumulative 36.7 hours Start 2025.12.04 @ 22:14:51 End 2025.12.05 @ 10:56:15 Sessions 3 Manual Loads 0 Difficulty Rogue Special Mode None Game No. 41 Rogue 41 Adventurer 0 Explorer 0 Win Type - Total 0 Types 0/0/0/0/0/0/0/0/0/0 Lore% 19 Gallery% 25 Achievement% 22 Wizard Run 0 Options --------- Layout 0 ASCII 0 Keyboard 0 Movement Mouse Keybinds 0 Fullscreen 0 Font 24/Smallcaps Map View 74x54 Zoom Use 0% Tactical HUD 1 Map Filters NONE Filters NONE Steam 1 RUN: d45d7194-13e0-404d-a9a6-a562b5011f14